bitfinex/quotes_SOLUSD_20240816
["timestamp","ask_amount","ask_price","bid_price","bid_amount"]
[1723807244279,0.8457537,143.51,143.5,6.2076]
[1723807245480,6.9657,143.57,143.51,20.0]
[1723807245691,6.9657,143.57,143.52,1.39326701]
[1723807245973,6.9657,143.57,143.51,20.0]
[1723807247240,6.9657,143.57,143.52,16.6008]
[1723807247847,6.9643,143.59,143.53,1.39315792]
[1723807248057,6.9643,143.59,143.52,27.0608]
[1723807250099,6.9653,143.57,143.52,16.6008]
[1723807250404,6.9657,143.56,143.52,16.6008]
[1723807250703,10.71098,143.58,143.52,16.6008]
[1723807250704,6.9653,143.57,143.52,16.6008]
[1723807251892,7.09039,143.58,143.52,16.6008]
[1723807252069,6.9649,143.58,143.52,16.6008]
[1723807252471,7.658325,143.58,143.52,16.6008]
[1723807252677,6.9649,143.58,143.52,16.6008]
[1723807255473,6.9644,143.59,143.53,6.4284]
[1723807258102,0.693425,143.58,143.53,6.4284]
[1723807258278,6.9639,143.6,143.53,26.4284]
[1723807260772,6.9634,143.61,143.54,16.3607]
[1723807261310,6.9634,143.61,143.55,1.39298492]
[1723807261814,6.9619,143.64,143.57,20.0]
[1723807262111,7.8071537,143.65,143.59,15.3223]
[1723807262313,6.9618,143.64,143.59,15.3223]
[1723807262900,7.8071537,143.65,143.59,15.3223]
[1723807264519,7.8071537,143.65,143.59,16.71493907]
[1723807265021,7.8071537,143.65,143.59,15.3223]
[1723807265223,6.9619,143.64,143.59,15.3223]
[1723807265427,17.4219,143.64,143.59,15.3223]
[1723807265717,0.25098,143.63,143.59,15.3223]
[1723807265886,6.9629,143.62,143.59,15.3223]
[1723807266086,0.12549,143.63,143.59,15.3223]
[1723807266302,10.46,143.64,143.59,15.3223]
[1723807266495,0.12549,143.63,143.59,15.3223]
[1723807266795,0.25098,143.64,143.59,15.3223]
[1723807267625,0.12549,143.64,143.61,6.0214]
[1723807267807,0.8457537,143.65,143.61,6.0214]
[1723807269322,0.8457537,143.65,143.62,15.3516]
[1723807273012,10.46,143.64,143.57,22.444]
[1723807273348,0.818915,143.63,143.57,22.444]
[1723807273511,0.12549,143.63,143.57,22.444]
[1723807273848,0.25098,143.63,143.57,22.444]
[1723807274584,0.12549,143.63,143.59,20.0]
[1723807274842,0.8457537,143.65,143.62,20.0]
[1723807275018,0.8457537,143.65,143.63,1.39215967]
[1723807275805,0.8457537,143.65,143.64,15.195]
[1723807276349,7.25965977,143.74,143.64,41.6237]
[1723807276557,6.9575,143.73,143.65,10.46]
[1723807277042,6.9575,143.73,143.64,41.6237]
[1723807277043,6.9589,143.71,143.64,41.6237]
[1723807277343,10.46,143.75,143.66,20.0]
[1723807277513,10.46,143.75,143.67,1.39174665]
[1723807277850,10.46,143.75,143.66,20.0]
[1723807278016,24.64815008,143.77,143.66,20.0]
[1723807278017,26.07,143.76,143.67,15.2814]
[1723807278217,26.07,143.76,143.68,1.39169816]
[1723807278515,26.07,143.76,143.67,15.2814]
[1723807278715,6.9569,143.75,143.68,1.39169951]
[1723807279117,0.12549,143.75,143.67,15.2814]
[1723807279528,45.12549,143.75,143.67,15.2814]
[1723807279745,6.958,143.72,143.67,15.2814]
[1723807280131,0.12549,143.73,143.67,15.2814]
[1723807280911,20.12549,143.74,143.67,15.2814]
[1723807281152,20.12549,143.74,143.68,1.39171127]
[1723807281321,7.08289,143.74,143.68,1.39171127]
[1723807281525,26.9575,143.73,143.67,15.2814]
[1723807281716,0.25098,143.72,143.67,15.2814]
[1723807282326,0.12549,143.72,143.67,15.2814]
[1723807282617,6.9575,143.73,143.68,1.39175481]
[1723807283050,7.20808,143.74,143.68,1.39175481]
[1723807283350,20.0,143.73,143.67,15.2814]
[1723807284636,7.20808,143.74,143.67,15.2814]
[1723807284832,20.0,143.73,143.67,15.2814]
[1723807285142,20.0,143.73,143.68,1.39169921]
[1723807285461,7.20808,143.74,143.69,6.3502]
[1723807285462,0.25098,143.74,143.69,6.3502]
[1723807285983,0.25098,143.75,143.69,6.3502]
[1723807286151,20.25098,143.75,143.69,6.3502]
[1723807286978,6.9576,143.73,143.69,6.3502]
[1723807287589,0.12549,143.73,143.7,1.39170743]
[1723807287746,0.25098,143.73,143.7,1.39170743]
[1723807288284,6.957,143.74,143.7,1.39170743]
[1723807289381,6.957,143.74,143.69,6.3502]
[1723807290987,20.0,143.75,143.7,16.43371458]
[1723807291286,20.0,143.77,143.71,1.39139297]
[1723807291586,6.956,143.76,143.71,1.39139297]
[1723807291954,6.956,143.76,143.7,15.0422]
[1723807292663,6.9565,143.75,143.7,15.0422]
[1723807293052,0.12549,143.75,143.7,15.0422]
[1723807293247,20.37647,143.75,143.7,15.0422]
[1723807293447,7.08299,143.73,143.7,15.0422]
[1723807293685,26.07,143.78,143.7,15.0422]
[1723807293686,0.8457537,143.8,143.7,15.0422]
[1723807293883,0.12549,143.78,143.7,35.0422]
[1723807294051,6.9561,143.76,143.7,35.0422]
[1723807294678,6.9554,143.78,143.72,15.3075]
[1723807294867,0.8457537,143.8,143.72,15.3075]
[1723807294868,7.7999537,143.8,143.74,15.3075]
[1723807295388,0.8457537,143.8,143.78,20.0]
[1723807296049,7.27134694,143.84,143.78,20.0]
[1723807296256,48.263,143.91,143.79,61.37409]
[1723807296474,6.9516,143.86,143.79,16.2486]
[1723807297057,6.9516,143.86,143.79,46.2486]
[1723807297258,26.07,143.9,143.8,71.47019]
[1723807297652,26.07,143.9,143.81,15.3202]
[1723807297653,6.9503,143.88,143.81,15.3202]
[1723807297981,7.26838454,143.91,143.8,71.47019]
[1723807297982,6.9491,143.91,143.83,26.07]
[1723807298198,7.7931537,143.94,143.86,6.046]
[1723807298489,7.7931537,143.94,143.87,20.0]
[1723807299197,0.8457537,143.94,143.88,21.3662]
[1723807299354,0.8457537,143.94,143.88,77.4362]
[1723807299665,0.8457537,143.94,143.89,20.0]
[1723807299890,0.8457537,143.94,143.89,65.12549]
[1723807300178,1.20968533,144.05,143.92,20.0]
[1723807300373,27.27968533,144.05,143.94,20.0]
[1723807300577,6.9443,144.01,143.94,20.0]
[1723807300887,0.693425,144.04,143.92,30.0]
[1723807301058,6.9469,143.95,143.91,22.2337]
[1723807301386,6.9465,143.96,143.92,1.38954007]
[1723807301552,0.12549,143.99,143.93,1.38928207]
[1723807301880,17.3577,144.03,143.93,21.38928207]
[1723807302091,6.9448,144.0,143.93,21.38928207]
[1723807303083,6.9435,144.02,143.93,67.4590031]
[1723807303287,6.9435,144.02,143.92,0.12549]
[1723807303288,6.9441,144.01,143.92,1.38880215]
[1723807303598,6.9441,144.01,143.91,88.3037]
[1723807303599,0.693425,144.05,143.91,22.2337]
[1723807303884,6.9468,143.95,143.91,22.2337]
[1723807304423,6.9464,143.96,143.91,22.2337]
[1723807305887,6.9459,143.97,143.91,22.2337]
[1723807306389,6.9463,143.96,143.91,22.2337]
[1723807306885,17.3567,144.04,143.91,22.2337]
[1723807307185,6.9429,144.04,143.96,22.5186]
[1723807307390,6.9429,144.04,143.96,48.5886]
[1723807307560,26.07,144.05,143.96,22.5186]
[1723807307958,6.9435,144.02,143.96,22.5186]
[1723807308389,26.07,144.05,143.96,22.5186]
[1723807308590,6.9435,144.02,143.96,22.5186]
[1723807308793,26.07,144.07,143.96,22.5186]
[1723807309379,26.07,144.05,143.96,22.5186]
[1723807309687,26.07,144.03,143.96,22.5186]
[1723807309896,32.47,144.01,143.96,22.5186]
[1723807310100,49.8304,144.01,143.96,16.0257]
[1723807310499,20.25098,144.0,143.96,16.0257]
[1723807310699,0.12549,143.99,143.92,6.2585]
[1723807310905,0.12549,143.97,143.92,21.5184]
[1723807311221,32.59549,143.97,143.92,21.5184]
[1723807311511,0.12549,143.96,143.92,21.5184]
[1723807311810,6.9469,143.95,143.92,21.5184]
[1723807312131,0.12549,143.97,143.92,21.5184]
[1723807312278,27.07119,143.98,143.93,1.38957796]
[1723807312702,27.07119,143.98,143.92,21.5184]
[1723807312916,6.9462,143.97,143.92,21.5184]
[1723807313109,6.9462,143.97,143.93,1.38939762]
[1723807313294,6.9462,143.97,143.92,21.5184]
[1723807313709,27.07099,143.98,143.93,1.38928278]
[1723807313903,6.9455,143.98,143.92,21.5184]
[1723807314085,7.19688,143.97,143.92,21.5184]
[1723807314295,7.07139,143.97,143.92,21.5184]
[1723807314509,6.9454,143.98,143.92,21.5184]
[1723807314708,0.12549,143.97,143.92,21.5184]
[1723807314897,0.25098,143.97,143.92,21.5184]
[1723807315095,0.12549,143.97,143.92,21.5184]
[1723807315509,6.9472,143.95,143.92,21.5184]
[1723807315713,0.12549,143.97,143.92,21.5184]
[1723807315714,0.12549,143.96,143.92,21.5184]
[1723807315912,0.25098,143.97,143.92,21.5184]
[1723807316117,6.9464,143.96,143.92,21.5184]
[1723807317052,7.07229,143.95,143.92,21.5184]
[1723807317197,6.9465,143.96,143.92,21.5184]
[1723807317515,6.9469,143.95,143.92,21.5184]
[1723807319321,0.25098,143.97,143.92,21.5184]
[1723807319322,6.946,143.97,143.92,21.5184]
[1723807319500,6.946,143.97,143.93,1.38932993]
[1723807319921,6.946,143.97,143.92,21.5184]
[1723807320094,6.9466,143.96,143.92,21.5184]
[1723807320506,6.947,143.95,143.92,21.5184]
[1723807320704,0.12549,143.97,143.92,21.5184]
[1723807320902,7.19718,143.97,143.92,21.5184]
[1723807321207,6.9472,143.95,143.92,21.5184]
[1723807321516,0.25098,143.97,143.92,21.5184]
[1723807321721,20.0,143.98,143.92,21.5184]
[1723807322297,6.9474,143.94,143.92,21.5184]
[1723807322617,6.9465,143.96,143.92,15.2599]
[1723807322796,17.3646,143.98,143.92,15.2599]
[1723807323135,0.12549,143.94,143.92,15.2599]
[1723807323293,0.25098,143.94,143.92,15.2599]
[1723807323838,17.36,144.01,143.92,15.2599]
[1723807324137,6.9459,143.97,143.92,15.2599]
[1723807324999,0.12549,143.96,143.92,15.2599]
[1723807325336,6.9459,143.97,143.93,1.38942453]
[1723807325924,20.0,143.99,143.92,35.2599]
[1723807325925,26.9452,143.99,143.92,35.2599]
[1723807326227,26.9452,143.99,143.92,15.2599]
[1723807326228,20.0,143.99,143.92,15.2599]
[1723807326410,26.9453,143.99,143.92,15.2599]
[1723807327027,6.9454,143.98,143.92,15.2599]
[1723807327334,24.62173297,144.02,143.93,6.4253]
[1723807327539,7.26263297,144.02,143.94,36.4201]
[1723807327831,6.9426,144.04,143.96,20.0]
[1723807328332,6.9431,144.03,143.96,20.0]
[1723807328925,49.8235,144.07,143.94,36.54559]
[1723807329128,49.8235,144.07,143.94,16.4201]
[1723807329129,0.12549,144.04,143.94,16.4201]
[1723807329328,0.12549,144.04,143.95,20.0]
[1723807329329,0.25098,144.04,143.95,20.0]
[1723807329541,6.9434,144.03,143.95,20.0]
[1723807330196,7.06799,144.04,143.94,16.4201]
[1723807330401,20.0,144.03,143.94,17.80896037]
[1723807330712,20.0,144.03,143.94,48.8901]
[1723807330914,20.0,144.03,143.95,20.0]
[1723807331133,7.19348,144.04,143.95,20.0]
[1723807331440,6.9425,144.04,143.96,22.8964]
[1723807331593,6.9419,144.06,143.97,20.0]
[1723807331821,6.9419,144.06,143.98,1.38868026]
[1723807332018,0.8457537,144.08,143.97,20.0]
[1723807332019,6.9421,144.05,143.97,20.0]
[1723807332231,6.9421,144.05,143.96,22.8964]
[1723807333025,6.9421,144.05,143.96,42.8964]
[1723807334005,6.9416,144.06,143.98,20.0]
[1723807334205,0.8457537,144.08,143.98,15.8737]
[1723807334715,27.7866537,144.08,143.99,0.12549]
[1723807335230,6.9411,144.07,144.0,6.6464]
[1723807335436,20.8457537,144.08,144.0,6.6464]
[1723807335437,6.9415,144.06,144.0,6.6464]
[1723807336113,27.7863537,144.08,144.01,15.6684]
[1723807337007,6.941,144.07,144.01,15.6684]
[1723807337416,6.9416,144.06,144.01,15.6684]
[1723807337635,20.8457537,144.08,144.01,15.6684]
[1723807337818,6.9434,144.03,144.01,15.6684]
[1723807338023,45.25098,144.07,144.0,6.6464]
[1723807338320,0.12549,144.03,144.0,6.6464]
[1723807338931,20.25098,144.04,144.0,6.6464]
[1723807339129,6.9433,144.03,144.0,6.6464]
[1723807339302,27.19358,144.04,144.0,6.6464]
[1723807339717,6.943,144.03,144.0,6.6464]
[1723807341004,26.07549,144.05,144.0,6.6464]
[1723807341326,26.07549,144.05,144.01,1.38875944]
[1723807341327,6.9423,144.05,144.01,1.38875944]
[1723807341516,6.9415,144.07,144.01,1.38875944]
[1723807341713,0.12549,144.06,144.0,6.6464]
[1723807342035,6.942,144.05,144.0,6.6464]
[1723807342337,0.12549,144.06,144.0,6.6464]
[1723807342338,6.9416,144.06,144.0,6.6464]
[1723807343339,6.9425,144.04,144.0,6.6464]
[1723807343513,0.8457537,144.08,144.0,6.6464]
[1723807343717,25.95,144.05,143.98,16.462]
[1723807343926,6.9441,144.01,143.98,16.462]
[1723807344240,6.9447,144.0,143.98,16.462]
[1723807344415,0.12549,144.01,143.98,16.462]
[1723807344616,6.9449,143.99,143.96,6.2023]
[1723807345508,6.9455,143.98,143.95,15.6445]
[1723807346626,26.07549,144.01,143.95,15.6445]
[1723807346627,6.9448,144.0,143.95,15.6445]
[1723807346821,7.06949,144.01,143.96,1.38911726]
[1723807347750,25.95,144.01,143.95,15.6445]
[1723807347975,6.9449,143.99,143.95,15.6445]
[1723807348534,0.12549,144.01,143.96,1.38923299]
[1723807348734,32.47,144.04,143.95,15.6445]
[1723807348923,7.26032319,144.04,143.95,15.6445]
[1723807349133,14.16808719,144.04,143.96,6.3787]
[1723807349327,6.9425,144.04,143.96,26.3787]
[1723807349852,6.9416,144.06,143.98,20.0]
[1723807350054,6.9416,144.06,143.99,15.5165]
[1723807350425,33.3157537,144.08,143.99,15.5165]
[1723807350426,0.8457537,144.08,144.0,20.0]
[1723807350732,7.7866537,144.08,144.01,6.3787]
[1723807351935,0.693425,144.07,144.02,35.8525]
[1723807352176,0.8457537,144.08,144.04,20.0]
[1723807352465,0.8457537,144.08,144.05,1.38789933]
[1723807352633,0.8457537,144.08,144.03,45.12549]
[1723807352835,0.8457537,144.08,144.02,68.3225]
[1723807353656,0.8457537,144.08,144.02,15.8525]
[1723807354248,0.8457537,144.08,144.02,55.8525]
[1723807354548,0.8457537,144.08,144.02,15.8525]
[1723807355474,0.8457537,144.08,144.02,35.8525]
[1723807355654,0.8457537,144.08,144.02,15.8525]
[1723807355853,0.8457537,144.08,144.02,35.8525]
[1723807356172,0.8457537,144.08,144.04,20.0]
[1723807356744,0.8457537,144.08,144.04,40.0]
[1723807357863,0.8457537,144.08,144.03,32.47]
[1723807358069,0.8457537,144.08,144.03,20.0]
[1723807359355,17.3412,144.17,144.06,22.9355]
[1723807359696,6.938,144.14,144.06,22.9355]
[1723807361999,6.9387,144.12,144.06,22.9355]
[1723807363980,6.9391,144.11,144.06,22.9355]
[1723807364304,6.9386,144.12,144.06,22.9355]
[1723807364674,32.59549,144.15,144.06,22.9355]
[1723807364675,6.9382,144.13,144.06,22.9355]
[1723807365384,6.9387,144.12,144.06,22.9355]
[1723807365601,32.59549,144.15,144.06,22.9355]
[1723807365602,0.693425,144.14,144.06,22.9355]
[1723807365768,6.94,144.1,144.06,22.9355]
[1723807366100,6.94,144.1,144.06,16.4386]
[1723807366297,7.06469,144.11,144.06,16.4386]
[1723807366512,7.06419,144.12,144.06,16.4386]
[1723807367407,6.9391,144.11,144.06,16.4386]
[1723807368222,0.12549,144.12,144.06,16.4386]
[1723807368223,6.9397,144.1,144.06,16.4386]
[1723807369003,0.12549,144.12,144.03,6.4391]
[1723807369004,6.9407,144.08,144.03,21.5313]
[1723807369210,0.818915,144.1,144.03,21.5313]
[1723807369506,6.9407,144.08,144.03,21.5313]
[1723807369684,6.9414,144.07,144.03,21.5313]
[1723807369878,25.95,144.07,143.99,21.4517]
[1723807370309,6.9423,144.05,143.99,21.4517]
[1723807371709,6.9417,144.06,143.99,21.4517]
[1723807372084,6.942,144.05,143.99,21.4517]
[1723807372425,6.943,144.03,143.99,21.4517]
[1723807372713,6.9426,144.04,143.99,21.4517]
[1723807373330,7.06759,144.05,143.99,21.4517]
[1723807373723,0.12549,144.04,143.99,21.4517]
[1723807373886,6.9439,144.01,143.99,15.2224]
[1723807374282,6.9447,144.0,143.96,16.6536]
[1723807374505,6.9435,144.02,143.96,16.6536]
[1723807374703,6.9431,144.03,143.96,16.6536]
[1723807374886,6.9426,144.04,143.97,1.38893616]
[1723807375716,6.9426,144.04,143.96,16.6536]
[1723807376189,6.9421,144.05,143.97,21.38878734]
[1723807376429,6.9426,144.04,143.96,16.6536]
[1723807378391,6.943,144.03,143.96,16.6536]
[1723807378815,32.43,144.06,143.96,16.6536]
[1723807378816,0.12549,144.05,143.96,16.6536]
[1723807379024,6.9435,144.02,143.96,16.6536]
[1723807380508,6.9455,143.98,143.96,16.6536]
[1723807380720,0.12549,144.04,143.96,16.6536]
[1723807380907,6.9437,144.02,143.96,18.0428059]
[1723807381110,6.9437,144.02,143.96,16.6536]
[1723807381326,0.12549,144.04,143.96,16.6536]
[1723807381634,65.37647,144.04,143.96,16.6536]
[1723807381931,0.12549,144.03,143.96,16.6536]
[1723807382134,0.12549,144.02,143.96,16.6536]
[1723807382632,6.9445,144.0,143.96,16.6536]
[1723807385624,6.9439,144.01,143.96,18.04274204]
[1723807385814,6.9439,144.01,143.96,16.6536]
[1723807386622,6.9445,144.0,143.96,16.6536]
[1723807386923,6.9449,143.99,143.96,16.6536]
[1723807387128,6.9445,144.0,143.96,16.6536]
[1723807387695,6.944,144.01,143.96,16.6536]
[1723807387927,6.9444,144.0,143.96,16.6536]
[1723807388297,0.693425,143.99,143.96,16.6536]
[1723807388920,6.9444,144.0,143.96,16.6536]
[1723807391545,32.43,144.02,143.96,16.6536]
[1723807391701,6.945,143.99,143.96,16.6536]
[1723807392528,6.945,143.99,143.95,6.4207]
[1723807392529,6.9454,143.98,143.95,6.4207]
[1723807392700,7.07049,143.99,143.95,6.4207]
[1723807392903,0.25098,144.01,143.95,6.4207]
[1723807393134,0.12549,144.0,143.95,6.4207]
[1723807393323,6.9449,143.99,143.95,6.4207]
[1723807394541,7.06999,144.0,143.95,6.4207]
[1723807394714,6.9445,144.0,143.95,6.4207]
[1723807395223,20.0,144.04,143.96,1.38922345]
[1723807395743,6.9438,144.02,143.96,1.38922345]
[1723807395905,6.9439,144.01,143.96,1.38922345]
[1723807397146,6.9436,144.02,143.96,1.38922345]
[1723807397432,6.9436,144.02,143.97,15.4734]
[1723807398048,6.9447,144.0,143.97,15.4734]
[1723807400159,6.945,143.99,143.97,15.4734]
[1723807401244,6.9454,143.98,143.95,6.4207]
[1723807401439,0.12549,144.02,143.95,6.4207]
[1723807401633,25.97,144.01,143.95,6.4207]
[1723807403022,6.945,143.99,143.95,6.4207]
[1723807404854,6.9445,144.0,143.95,6.4207]
[1723807405029,25.97,144.03,143.96,1.38909375]
[1723807405363,6.9431,144.03,143.96,1.38909375]
[1723807406274,6.9435,144.02,143.96,1.38909375]
[1723807406432,6.944,144.01,143.96,1.38909375]
[1723807406765,6.944,144.01,143.95,6.4207]
[1723807406925,6.9433,144.03,143.96,1.38896038]
[1723807407244,6.9433,144.03,143.95,6.4207]
[1723807407245,6.9435,144.02,143.95,6.4207]
[1723807408159,17.3546,144.06,143.96,1.38896044]
[1723807408325,0.12549,144.06,143.96,17.55586044]
[1723807408531,0.50196,144.06,143.96,17.55586044]
[1723807408930,6.9428,144.04,143.96,17.55586044]
[1723807409356,6.9428,144.04,143.96,16.1669]
[1723807410956,6.9428,144.04,143.97,1.38874046]
[1723807411257,6.9428,144.04,143.96,16.1669]
[1723807411626,6.9428,144.04,143.97,1.38870686]
[1723807411827,6.9428,144.04,143.96,16.1669]
[1723807412134,6.9428,144.04,143.97,8.03137686]
[1723807412323,6.9421,144.05,143.98,1.38866406]
[1723807412531,6.9421,144.05,143.97,6.6427]
[1723807412740,6.9425,144.04,143.97,6.6427]
[1723807413451,6.943,144.03,143.97,6.6427]
[1723807414174,25.97,144.05,143.97,6.6427]
[1723807414175,6.9434,144.02,143.97,6.6427]
[1723807414348,0.12549,144.04,143.97,6.6427]
[1723807414548,6.9434,144.02,143.97,6.6427]
[1723807414845,6.9436,144.02,143.97,6.6427]
[1723807415065,6.944,144.01,143.97,6.6427]
[1723807415642,7.07039,144.0,143.97,6.6427]
[1723807416048,6.9449,143.99,143.97,6.6427]
[1723807417356,6.9454,143.98,143.96,16.1669]
[1723807417553,25.97,143.98,143.93,22.2912]
[1723807418080,6.9469,143.95,143.93,22.2912]
[1723807418242,6.9469,143.95,143.93,15.9839]
[1723807418443,0.25098,143.97,143.89,6.3763]
[1723807418444,6.9473,143.94,143.89,6.3763]
[1723807418785,25.97,143.94,143.89,6.3763]
[1723807418948,6.9473,143.95,143.89,6.3763]
[1723807420080,26.22098,143.97,143.89,6.3763]
[1723807420243,0.12549,143.95,143.89,6.3763]
[1723807420448,26.09549,143.95,143.89,6.3763]
[1723807420650,6.9476,143.94,143.89,6.3763]
[1723807420960,33.04239,143.95,143.89,6.3763]
[1723807422484,6.9469,143.95,143.89,7.76609131]
[1723807422776,6.9469,143.95,143.89,6.3763]
[1723807423754,7.07189,143.96,143.89,7.76598636]
[1723807423959,25.97,143.97,143.89,6.3763]
[1723807423960,6.9462,143.97,143.89,6.3763]
[1723807425974,6.9464,143.96,143.89,6.3763]
[1723807427288,6.9464,143.96,143.9,1.38964906]
[1723807427573,6.9464,143.96,143.89,6.3763]
[1723807427745,6.946,143.97,143.89,6.3763]
[1723807427957,6.9455,143.98,143.9,16.1674]
[1723807430392,6.946,143.97,143.9,16.1674]
[1723807433173,6.9465,143.96,143.9,16.1674]
[1723807433386,6.946,143.97,143.9,17.55699925]
[1723807433693,6.946,143.97,143.9,16.1674]
[1723807434601,0.12549,143.96,143.9,16.1674]
[1723807434766,7.19648,143.98,143.9,16.1674]
[1723807434966,7.07099,143.98,143.9,16.1674]
[1723807436300,6.9459,143.97,143.9,16.1674]
[1723807437297,7.19738,143.96,143.9,16.1674]
[1723807437779,6.946,143.97,143.9,16.1674]
[1723807438686,7.32197,143.98,143.9,16.1674]
[1723807438919,0.25098,143.97,143.9,16.1674]
[1723807439406,7.19688,143.97,143.9,16.1674]
[1723807439981,24.55504223,144.04,143.91,6.0876]
[1723807440204,24.55504223,144.04,143.93,20.0]
[1723807440205,6.944,144.01,143.93,20.0]
[1723807440383,6.944,144.01,143.92,70.97]
[1723807440384,6.9445,144.0,143.94,16.1255]
[1723807441416,6.9451,143.99,143.94,16.1255]
[1723807441581,0.12549,144.0,143.94,16.1255]
[1723807441906,25.97,144.03,143.94,16.1255]
[1723807441907,0.12549,144.01,143.95,1.38911272]
[1723807442090,0.12549,144.01,143.94,16.1255]
[1723807442293,6.9436,144.02,143.95,7.56501472]
[1723807442506,6.9443,144.01,143.95,6.1759]
[1723807443687,7.32087,144.0,143.95,6.1759]
[1723807444204,6.9455,143.98,143.95,6.1759]
[1723807444405,7.07099,143.98,143.95,6.1759]
[1723807444633,0.12549,143.97,143.95,6.1759]
[1723807445688,6.9449,143.99,143.95,6.1759]
[1723807445887,7.19638,143.98,143.95,6.1759]
[1723807447910,0.25098,143.98,143.95,6.1759]
[1723807448144,0.12549,143.98,143.95,6.1759]
[1723807448297,6.945,143.99,143.95,6.1759]
[1723807448810,6.9445,144.0,143.95,6.1759]
[1723807449317,6.9449,143.99,143.95,6.1759]
[1723807450311,0.12549,143.99,143.95,6.1759]
[1723807450613,7.07009,144.0,143.95,6.1759]
[1723807451126,7.07009,144.0,143.95,7.56513576]
[1723807451305,6.9431,144.03,143.96,1.38912092]
[1723807451639,17.3559,144.05,143.96,42.1372]
[1723807451640,6.9424,144.05,143.96,42.1372]
[1723807451789,6.9414,144.07,143.99,22.6607]
[1723807451990,6.9414,144.07,144.0,1.38845799]
[1723807452337,6.9404,144.09,144.0,25.97]
[1723807452647,15.624,144.13,144.02,16.2547]
[1723807452648,25.97,144.12,144.02,16.2547]
[1723807452817,15.624,144.13,144.03,1.38827831]
[1723807453215,25.97,144.13,144.03,1.38827831]
[1723807453423,25.97,144.13,144.04,6.4468]
[1723807453591,6.9382,144.13,144.05,16.2547]
[1723807454223,43.75602664,144.18,144.06,25.97]
[1723807454224,1.208208,144.18,144.06,25.97]
[1723807454394,17.3375,144.2,144.05,16.2547]
[1723807454395,6.9381,144.14,144.05,16.2547]
[1723807454910,6.9372,144.15,144.06,6.3761]
[1723807455104,6.9372,144.15,144.07,16.4441]
[1723807455498,6.9377,144.14,144.07,16.4441]
[1723807456699,18.54539701,144.2,144.07,16.4441]
[1723807457005,6.9377,144.14,144.07,16.4441]
[1723807458914,25.97,144.17,144.07,16.4441]
[1723807459137,20.25098,144.16,144.07,16.4441]
[1723807459867,6.938,144.14,144.07,16.4441]
[1723807460140,6.9386,144.12,144.07,16.4441]
[1723807460344,6.9399,144.1,144.07,16.4441]
[1723807460543,6.9405,144.08,144.07,16.4441]
[1723807460765,25.97,144.11,144.07,16.4441]
[1723807460914,6.9404,144.09,144.07,16.4441]
[1723807461116,6.9405,144.08,144.07,16.4441]
[1723807461522,6.9402,144.09,144.07,16.4441]
[1723807461823,25.97,144.11,144.07,16.4441]
[1723807461824,6.9396,144.1,144.07,16.4441]
[1723807462352,6.9392,144.11,144.07,16.4441]
[1723807463023,6.9396,144.1,144.07,16.4441]
[1723807464219,6.9402,144.09,144.07,16.4441]
[1723807464420,6.9405,144.08,144.07,16.4441]
[1723807465042,6.9405,144.08,144.06,6.3761]
[1723807465428,6.941,144.07,144.03,22.3422]
[1723807465625,6.9416,144.06,144.03,22.3422]
[1723807466246,0.12549,144.1,144.0,16.0313]
[1723807466247,0.25098,144.07,144.0,16.0313]
[1723807466477,0.12549,144.06,144.0,16.0313]
[1723807466667,6.9428,144.04,144.0,16.0313]